[Event "Titled Tuesday Blitz March 08 Late 2022"]
[White "Tristan, Leonardo"]
[Black "Melkumyan, Hrant"]
[WhiteFideId "113816"]
[BlackFideId "13302485"]
[WhiteElo "2404"]
[BlackElo "2604"]
[Result "1-0"]
[Round "03"]
[TimeControl "180+1"]
[Date "2022.03.08"]
[WhiteClock "0:00:30"]
[BlackClock "0:00:03"]

1. e4 {[%clk 0:03:00]}  c6 {[%clk 0:02:57]} 2. d4 {[%clk 0:02:59]}  d5 {[%clk 0:02:57]} 3. exd5 {[%clk 0:02:59]}  cxd5 {[%clk 0:02:57]} 4. Bf4 {[%clk 0:03:00]}  Nf6 {[%clk 0:02:57]} 5. Nf3 {[%clk 0:03:00]}  Nc6 {[%clk 0:02:53]} 6. Nbd2 {[%clk 0:03:00]}  Bg4 {[%clk 0:02:53]} 7. c3 {[%clk 0:02:59]}  e6 {[%clk 0:02:53]} 8. Qb3 {[%clk 0:02:59]}  Qc8 {[%clk 0:02:50]} 9. Bd3 {[%clk 0:02:57]}  Be7 {[%clk 0:02:49]} 10. O-O {[%clk 0:02:57]}  O-O {[%clk 0:02:49]} 11. Rae1 {[%clk 0:02:55]}  a6 {[%clk 0:02:46]} 12. Ne5 {[%clk 0:02:53]}  Bh5 {[%clk 0:02:45]} 13. Qc2 {[%clk 0:02:41]}  Bg6 {[%clk 0:02:45]} 14. Re3 {[%clk 0:02:17]}  Bxd3 {[%clk 0:02:40]} 15. Qxd3 {[%clk 0:02:16]}  g6 {[%clk 0:02:25]} 16. Bg5 {[%clk 0:02:09]}  Qc7 {[%clk 0:02:22]} 17. Rfe1 {[%clk 0:01:59]}  Rfe8 {[%clk 0:02:07]} 18. Rf3 {[%clk 0:01:41]}  Nxe5 {[%clk 0:02:03]} 19. dxe5 {[%clk 0:01:40]}  Nd7 {[%clk 0:02:02]} 20. Bxe7 {[%clk 0:01:38]}  Rxe7 {[%clk 0:02:01]} 21. Qd4 {[%clk 0:01:32]}  Rc8 {[%clk 0:01:57]} 22. Qh4 {[%clk 0:01:26]}  Nf8 {[%clk 0:01:54]} 23. Rf4 {[%clk 0:01:15]}  Qd8 {[%clk 0:01:51]} 24. Nf3 {[%clk 0:01:12]}  Rec7 {[%clk 0:01:46]} 25. Qh6 {[%clk 0:01:10]}  Rc4 {[%clk 0:01:43]} 26. Nd4 {[%clk 0:01:02]}  b5 {[%clk 0:01:36]} 27. a3 {[%clk 0:01:02]}  Rb8 {[%clk 0:01:16]} 28. h4 {[%clk 0:01:00]}  a5 {[%clk 0:01:12]} 29. h5 {[%clk 0:01:01]}  b4 {[%clk 0:01:12]} 30. axb4 {[%clk 0:01:02]}  axb4 {[%clk 0:01:11]} 31. Re3 {[%clk 0:00:56]}  bxc3 {[%clk 0:01:10]} 32. bxc3 {[%clk 0:00:57]}  Rbc8 {[%clk 0:00:32]} 33. Rh3 {[%clk 0:00:55]}  Rxc3 {[%clk 0:00:29]} 34. hxg6 {[%clk 0:00:55]}  Rxh3 {[%clk 0:00:17]} 35. gxf7+ {[%clk 0:00:56]}  Kh8 {[%clk 0:00:18]} 36. Qxh3 {[%clk 0:00:50]}  Qg5 {[%clk 0:00:15]} 37. Rg4 {[%clk 0:00:30]}  Rc1+ {[%clk 0:00:10]} 38. Kh2 {[%clk 0:00:30]}  Qxe5+ {[%clk 0:00:11]} 39. f4 {[%clk 0:00:30]}  Qg7 {[%clk 0:00:02]} 40. Rxg7 {[%clk 0:00:30]}  Kxg7 {[%clk 0:00:03]} 1-0


[Site "https://www.chess.com"]

[Event "Titled Tuesday Blitz March 08 Late 2022"]
[White "Urbina Perez, Juan Antonio"]
[Black "Jacobson, Brandon"]
[WhiteFideId "2217368"]
[BlackFideId "30901561"]
[WhiteElo "2192"]
[BlackElo "2362"]
[Result "0-1"]
[Round "03"]
[TimeControl "180+1"]
[Date "2022.03.08"]
[WhiteClock "0:00:52"]
[BlackClock "0:00:39"]

1. e4 {[%clk 0:03:00]}  c5 {[%clk 0:02:57]} 2. Nf3 {[%clk 0:03:00]}  d6 {[%clk 0:02:57]} 3. Bb5+ {[%clk 0:03:00]}  Bd7 {[%clk 0:02:53]} 4. Bxd7+ {[%clk 0:02:58]}  Nxd7 {[%clk 0:02:54]} 5. O-O {[%clk 0:02:57]}  Ngf6 {[%clk 0:02:52]} 6. Qe2 {[%clk 0:02:58]}  e6 {[%clk 0:02:51]} 7. b3 {[%clk 0:02:55]}  g6 {[%clk 0:02:50]} 8. Bb2 {[%clk 0:02:53]}  Bg7 {[%clk 0:02:51]} 9. c4 {[%clk 0:02:51]}  O-O {[%clk 0:02:47]} 10. Nc3 {[%clk 0:02:51]}  Ng4 {[%clk 0:02:43]} 11. h3 {[%clk 0:02:47]}  Nge5 {[%clk 0:02:37]} 12. Nxe5 {[%clk 0:02:44]}  Nxe5 {[%clk 0:02:38]} 13. f4 {[%clk 0:02:37]}  Nc6 {[%clk 0:02:38]} 14. Rab1 {[%clk 0:02:29]}  Nd4 {[%clk 0:02:33]} 15. Qd3 {[%clk 0:02:29]}  f5 {[%clk 0:02:27]} 16. Ne2 {[%clk 0:02:27]}  Nxe2+ {[%clk 0:02:20]} 17. Qxe2 {[%clk 0:02:26]}  Bxb2 {[%clk 0:02:20]} 18. Rxb2 {[%clk 0:02:27]}  Qf6 {[%clk 0:02:20]} 19. d3 {[%clk 0:02:24]}  Qd4+ {[%clk 0:02:15]} 20. Kh1 {[%clk 0:02:23]}  Rf6 {[%clk 0:02:11]} 21. Rd2 {[%clk 0:02:18]}  Raf8 {[%clk 0:02:10]} 22. e5 {[%clk 0:02:14]}  dxe5 {[%clk 0:02:08]} 23. Qxe5 {[%clk 0:02:14]}  Rd8 {[%clk 0:01:54]} 24. Re1 {[%clk 0:02:12]}  b6 {[%clk 0:01:47]} 25. Qxd4 {[%clk 0:02:04]}  Rxd4 {[%clk 0:01:46]} 26. g3 {[%clk 0:02:04]}  Kf7 {[%clk 0:01:46]} 27. Kg2 {[%clk 0:02:03]}  Ke7 {[%clk 0:01:46]} 28. Kf3 {[%clk 0:02:01]}  Rf8 {[%clk 0:01:46]} 29. Re3 {[%clk 0:01:58]}  Kf6 {[%clk 0:01:46]} 30. Ke2 {[%clk 0:01:56]}  h6 {[%clk 0:01:44]} 31. Kd1 {[%clk 0:01:56]}  g5 {[%clk 0:01:41]} 32. fxg5+ {[%clk 0:01:56]}  hxg5 {[%clk 0:01:42]} 33. Rde2 {[%clk 0:01:53]}  Rd6 {[%clk 0:01:40]} 34. Kc2 {[%clk 0:01:52]}  Rh8 {[%clk 0:01:24]} 35. Rh2 {[%clk 0:01:41]}  e5 {[%clk 0:01:17]} 36. Kc3 {[%clk 0:01:37]}  g4 {[%clk 0:01:05]} 37. h4 {[%clk 0:01:34]}  f4 {[%clk 0:01:06]} 38. gxf4 {[%clk 0:01:34]}  exf4 {[%clk 0:01:06]} 39. Re4 {[%clk 0:01:34]}  Kf5 {[%clk 0:01:04]} 40. h5 {[%clk 0:01:25]}  Rd4 {[%clk 0:00:53]} 41. Re7 {[%clk 0:01:17]}  g3 {[%clk 0:00:47]} 42. Rh1 {[%clk 0:00:57]}  g2 {[%clk 0:00:42]} 43. Rg1 {[%clk 0:00:57]}  f3 {[%clk 0:00:42]} 44. Rf7+ {[%clk 0:00:57]}  Kg4 {[%clk 0:00:42]} 45. Rg7+ {[%clk 0:00:57]}  Kf4 {[%clk 0:00:42]} 46. Kd2 {[%clk 0:00:53]}  Rhd8 {[%clk 0:00:39]} 47. Rf7+ {[%clk 0:00:52]}  Kg3 {[%clk 0:00:39]} 0-1


[Site "https://www.chess.com"]

[Event "Titled Tuesday Blitz March 08 Late 2022"]
[White "Van Foreest, Jorden"]
[Black "Wagner, Dennis"]
[WhiteFideId "1039784"]
[BlackFideId "24650684"]
[WhiteElo "2609"]
[BlackElo "2355"]
[Result "1-0"]
[Round "03"]
[TimeControl "180+1"]
[Date "2022.03.08"]
[WhiteClock "0:00:53"]
[BlackClock "0:00:41"]

1. e4 {[%clk 0:02:59]}  e5 {[%clk 0:03:00]} 2. Bc4 {[%clk 0:02:58]}  Nf6 {[%clk 0:02:59]} 3. d3 {[%clk 0:02:58]}  Bc5 {[%clk 0:02:59]} 4. Nf3 {[%clk 0:02:58]}  d6 {[%clk 0:02:59]} 5. O-O {[%clk 0:02:57]}  Nc6 {[%clk 0:02:57]} 6. Nc3 {[%clk 0:02:53]}  a6 {[%clk 0:02:54]} 7. Ne2 {[%clk 0:02:50]}  Ba7 {[%clk 0:02:46]} 8. Ng3 {[%clk 0:02:50]}  Na5 {[%clk 0:02:43]} 9. Bb3 {[%clk 0:02:50]}  Nxb3 {[%clk 0:02:42]} 10. axb3 {[%clk 0:02:51]}  O-O {[%clk 0:02:39]} 11. Bg5 {[%clk 0:02:49]}  h6 {[%clk 0:02:39]} 12. Bh4 {[%clk 0:02:47]}  Kh7 {[%clk 0:01:54]} 13. Nh5 {[%clk 0:02:35]}  Bg4 {[%clk 0:01:54]} 14. Nxf6+ {[%clk 0:02:16]}  gxf6 {[%clk 0:01:55]} 15. h3 {[%clk 0:02:16]}  Be6 {[%clk 0:01:41]} 16. Kh2 {[%clk 0:02:03]}  Rg8 {[%clk 0:01:40]} 17. d4 {[%clk 0:01:48]}  Rg6 {[%clk 0:01:26]} 18. dxe5 {[%clk 0:01:47]}  dxe5 {[%clk 0:01:27]} 19. Qxd8 {[%clk 0:01:44]}  Rxd8 {[%clk 0:01:28]} 20. Nxe5 {[%clk 0:01:45]}  Rxg2+ {[%clk 0:01:10]} 21. Kxg2 {[%clk 0:01:44]}  Rg8+ {[%clk 0:01:10]} 22. Ng4 {[%clk 0:01:43]}  h5 {[%clk 0:01:10]} 23. f3 {[%clk 0:01:44]}  f5 {[%clk 0:01:07]} 24. exf5 {[%clk 0:01:43]}  Bxf5 {[%clk 0:01:08]} 25. c4 {[%clk 0:01:34]}  hxg4 {[%clk 0:01:03]} 26. hxg4 {[%clk 0:01:34]}  Bc2 {[%clk 0:01:03]} 27. Rfe1 {[%clk 0:01:15]}  Bxb3 {[%clk 0:01:00]} 28. Rac1 {[%clk 0:01:08]}  f5 {[%clk 0:00:51]} 29. Re7+ {[%clk 0:01:08]}  Kh6 {[%clk 0:00:52]} 30. g5+ {[%clk 0:00:54]}  Kh5 {[%clk 0:00:52]} 31. Rh7+ {[%clk 0:00:54]}  Kg6 {[%clk 0:00:51]} 32. Rxc7 {[%clk 0:00:55]}  Be3 {[%clk 0:00:47]} 33. Rc3 {[%clk 0:00:55]}  Bf4 {[%clk 0:00:47]} 34. Rxb7 {[%clk 0:00:54]}  Ba4 {[%clk 0:00:44]} 35. Rb6+ {[%clk 0:00:54]}  Kg7 {[%clk 0:00:41]} 36. Rxa6 {[%clk 0:00:55]}  Rh8 {[%clk 0:00:41]} 37. Bg3 {[%clk 0:00:53]} 1-0


[Site "https://www.chess.com"]

[Event "Titled Tuesday Blitz March 08 Late 2022"]
[White "Vine, Elzbieta"]
[Black "Vifleemskaia, Svetlana"]
[WhiteFideId "1119320"]
[BlackFideId "4129490"]
[WhiteElo "1822"]
[BlackElo "1901"]
[Result "0-1"]
[Round "03"]
[TimeControl "180+1"]
[Date "2022.03.09"]
[WhiteClock "0:00:05"]
[BlackClock "0:01:04"]

1. e4 {[%clk 0:03:00]}  e5 {[%clk 0:02:53]} 2. Nf3 {[%clk 0:02:59]}  Nc6 {[%clk 0:02:52]} 3. Bb5 {[%clk 0:02:57]}  a6 {[%clk 0:02:52]} 4. Ba4 {[%clk 0:02:57]}  Nf6 {[%clk 0:02:52]} 5. O-O {[%clk 0:02:56]}  Be7 {[%clk 0:02:52]} 6. c3 {[%clk 0:02:53]}  Nxe4 {[%clk 0:02:48]} 7. Re1 {[%clk 0:02:47]}  Nf6 {[%clk 0:02:47]} 8. Nxe5 {[%clk 0:02:45]}  Nxe5 {[%clk 0:02:39]} 9. Rxe5 {[%clk 0:02:43]}  O-O {[%clk 0:02:40]} 10. d4 {[%clk 0:02:42]}  d6 {[%clk 0:02:35]} 11. Re3 {[%clk 0:02:37]}  d5 {[%clk 0:02:36]} 12. Bc2 {[%clk 0:02:30]}  Bg4 {[%clk 0:02:32]} 13. Qd3 {[%clk 0:02:26]}  Bh5 {[%clk 0:02:31]} 14. f4 {[%clk 0:02:20]}  Ne4 {[%clk 0:02:25]} 15. Nd2 {[%clk 0:02:18]}  Bg6 {[%clk 0:02:24]} 16. Nxe4 {[%clk 0:01:55]}  Bxe4 {[%clk 0:02:23]} 17. Rxe4 {[%clk 0:01:55]}  dxe4 {[%clk 0:02:21]} 18. Qxe4 {[%clk 0:01:55]}  g6 {[%clk 0:02:13]} 19. f5 {[%clk 0:01:54]}  Bf6 {[%clk 0:02:04]} 20. fxg6 {[%clk 0:01:53]}  hxg6 {[%clk 0:02:02]} 21. Bh6 {[%clk 0:01:50]}  Bg7 {[%clk 0:02:01]} 22. Qe3 {[%clk 0:01:31]}  Qd6 {[%clk 0:01:47]} 23. Rf1 {[%clk 0:01:23]}  Rae8 {[%clk 0:01:44]} 24. Qg5 {[%clk 0:01:20]}  Qe6 {[%clk 0:01:39]} 25. Bxg7 {[%clk 0:01:11]}  Kxg7 {[%clk 0:01:37]} 26. Qc5 {[%clk 0:01:03]}  Qe7 {[%clk 0:01:25]} 27. Qd5 {[%clk 0:01:01]}  c6 {[%clk 0:01:24]} 28. Qa5 {[%clk 0:00:54]}  Qe3+ {[%clk 0:01:19]} 29. Kh1 {[%clk 0:00:53]}  Qe2 {[%clk 0:01:19]} 30. Kg1 {[%clk 0:00:16]}  Qxc2 {[%clk 0:01:17]} 31. Qg5 {[%clk 0:00:15]}  Re6 {[%clk 0:01:12]} 32. h4 {[%clk 0:00:14]}  Qe2 {[%clk 0:01:06]} 33. Rf2 {[%clk 0:00:07]}  Qe1+ {[%clk 0:01:05]} 34. Rf1 {[%clk 0:00:06]}  Qe3+ {[%clk 0:01:05]} 35. Kh1 {[%clk 0:00:05]}  Qxg5 {[%clk 0:01:04]} 0-1


[Site "https://www.chess.com"]

[Event "Titled Tuesday Blitz March 08 Late 2022"]
[White "Warakomska, Anna"]
[Black "Gerbelli Neto, Eduardo"]
[WhiteFideId "1130790"]
[BlackFideId "2103281"]
[WhiteElo "2062"]
[BlackElo "2178"]
[Result "1-0"]
[Round "03"]
[TimeControl "180+1"]
[Date "2022.03.09"]
[WhiteClock "0:00:16"]
[BlackClock "0:00:04"]

1. e4 {[%clk 0:03:00]}  e5 {[%clk 0:02:58]} 2. Nf3 {[%clk 0:02:59]}  Nc6 {[%clk 0:02:57]} 3. Bb5 {[%clk 0:02:58]}  a6 {[%clk 0:02:57]} 4. Ba4 {[%clk 0:02:57]}  d6 {[%clk 0:02:57]} 5. O-O {[%clk 0:02:54]}  Bg4 {[%clk 0:02:56]} 6. c3 {[%clk 0:02:49]}  Qf6 {[%clk 0:02:55]} 7. d3 {[%clk 0:02:37]}  Ne7 {[%clk 0:02:55]} 8. Nbd2 {[%clk 0:02:35]}  Ng6 {[%clk 0:02:55]} 9. Re1 {[%clk 0:02:31]}  Nf4 {[%clk 0:02:53]} 10. Nf1 {[%clk 0:02:25]}  Nh3+ {[%clk 0:02:39]} 11. gxh3 {[%clk 0:02:22]}  Bxf3 {[%clk 0:02:39]} 12. Qd2 {[%clk 0:02:20]}  Be7 {[%clk 0:02:39]} 13. Ng3 {[%clk 0:01:50]}  h5 {[%clk 0:02:38]} 14. Bd1 {[%clk 0:01:28]}  Rh6 {[%clk 0:02:09]} 15. Bxf3 {[%clk 0:01:23]}  Qxf3 {[%clk 0:02:10]} 16. Qe2 {[%clk 0:01:20]}  Qxe2 {[%clk 0:02:08]} 17. Rxe2 {[%clk 0:01:21]}  Rg6 {[%clk 0:02:08]} 18. Kh1 {[%clk 0:01:18]}  h4 {[%clk 0:01:58]} 19. Nf5 {[%clk 0:01:17]}  Bf6 {[%clk 0:01:57]} 20. Be3 {[%clk 0:01:17]}  Ne7 {[%clk 0:01:55]} 21. Nxe7 {[%clk 0:01:04]}  Kxe7 {[%clk 0:01:56]} 22. Rg1 {[%clk 0:01:04]}  Rxg1+ {[%clk 0:01:51]} 23. Kxg1 {[%clk 0:01:05]}  g5 {[%clk 0:01:46]} 24. f3 {[%clk 0:01:04]}  Ke6 {[%clk 0:01:45]} 25. Rg2 {[%clk 0:01:04]}  Rg8 {[%clk 0:01:41]} 26. Kf2 {[%clk 0:01:04]}  c6 {[%clk 0:01:32]} 27. d4 {[%clk 0:00:59]}  exd4 {[%clk 0:01:29]} 28. cxd4 {[%clk 0:01:00]}  d5 {[%clk 0:01:29]} 29. e5 {[%clk 0:00:59]}  Be7 {[%clk 0:01:29]} 30. f4 {[%clk 0:00:47]}  Kf5 {[%clk 0:01:29]} 31. Rg4 {[%clk 0:00:47]}  Rg6 {[%clk 0:01:22]} 32. fxg5 {[%clk 0:00:47]}  Bxg5 {[%clk 0:01:22]} 33. Bxg5 {[%clk 0:00:47]}  Rxg5 {[%clk 0:01:19]} 34. Rxh4 {[%clk 0:00:48]}  c5 {[%clk 0:01:12]} 35. dxc5 {[%clk 0:00:45]}  Kxe5 {[%clk 0:01:12]} 36. Rb4 {[%clk 0:00:45]}  Rf5+ {[%clk 0:00:56]} 37. Kg3 {[%clk 0:00:36]}  d4 {[%clk 0:00:55]} 38. Rxb7 {[%clk 0:00:35]}  Kd5 {[%clk 0:00:55]} 39. b4 {[%clk 0:00:31]}  a5 {[%clk 0:00:46]} 40. Rd7+ {[%clk 0:00:24]}  Kc4 {[%clk 0:00:46]} 41. c6 {[%clk 0:00:24]}  axb4 {[%clk 0:00:42]} 42. c7 {[%clk 0:00:22]}  Rc5 {[%clk 0:00:42]} 43. Rxf7 {[%clk 0:00:22]}  d3 {[%clk 0:00:42]} 44. Rd7 {[%clk 0:00:22]}  Kc3 {[%clk 0:00:40]} 45. h4 {[%clk 0:00:21]}  d2 {[%clk 0:00:40]} 46. h5 {[%clk 0:00:20]}  Kc2 {[%clk 0:00:41]} 47. h6 {[%clk 0:00:19]}  d1=Q {[%clk 0:00:42]} 48. Rxd1 {[%clk 0:00:19]}  Kxd1 {[%clk 0:00:42]} 49. h7 {[%clk 0:00:20]}  Rc3+ {[%clk 0:00:15]} 50. Kg4 {[%clk 0:00:18]}  Rc4+ {[%clk 0:00:12]} 51. Kf5 {[%clk 0:00:17]}  Rc5+ {[%clk 0:00:10]} 52. Ke4 {[%clk 0:00:16]}  Rxc7 {[%clk 0:00:04]} 53. h8=Q {[%clk 0:00:16]}  Rc2 {[%clk 0:00:05]} 54. Qd4+ {[%clk 0:00:16]}  Kc1 {[%clk 0:00:04]} 55. Qxb4 {[%clk 0:00:16]} 1-0


[Site "https://www.chess.com"]

[Event "Titled Tuesday Blitz March 08 Late 2022"]
[White "Xiong, Jeffery"]
[Black "Derraugh, Geordie"]
[WhiteFideId "2047640"]
[BlackFideId "2603950"]
[WhiteElo "2727"]
[BlackElo "2116"]
[Result "1-0"]
[Round "03"]
[TimeControl "180+1"]
[Date "2022.03.08"]
[WhiteClock "0:00:41"]
[BlackClock "0:00:12"]

1. e4 {[%clk 0:02:54]}  e5 {[%clk 0:02:58]} 2. Nf3 {[%clk 0:02:54]}  Nc6 {[%clk 0:02:58]} 3. Nc3 {[%clk 0:02:54]}  Nf6 {[%clk 0:02:57]} 4. d4 {[%clk 0:02:54]}  exd4 {[%clk 0:02:56]} 5. Nxd4 {[%clk 0:02:55]}  Bb4 {[%clk 0:02:54]} 6. Nxc6 {[%clk 0:02:55]}  bxc6 {[%clk 0:02:55]} 7. Bd3 {[%clk 0:02:56]}  O-O {[%clk 0:02:55]} 8. O-O {[%clk 0:02:57]}  Re8 {[%clk 0:02:55]} 9. Qf3 {[%clk 0:02:54]}  d5 {[%clk 0:02:46]} 10. exd5 {[%clk 0:02:55]}  cxd5 {[%clk 0:02:45]} 11. h3 {[%clk 0:02:53]}  c6 {[%clk 0:02:45]} 12. Bf4 {[%clk 0:02:53]}  Be6 {[%clk 0:02:43]} 13. Rad1 {[%clk 0:02:51]}  Qb6 {[%clk 0:02:41]} 14. Ne2 {[%clk 0:02:46]}  Bc5 {[%clk 0:02:38]} 15. b3 {[%clk 0:02:44]}  Ne4 {[%clk 0:02:35]} 16. Bxe4 {[%clk 0:02:36]}  dxe4 {[%clk 0:02:35]} 17. Qg3 {[%clk 0:02:37]}  Qa6 {[%clk 0:02:19]} 18. Be5 {[%clk 0:02:36]}  Bf8 {[%clk 0:02:18]} 19. Nf4 {[%clk 0:02:33]}  Bf5 {[%clk 0:02:18]} 20. Nh5 {[%clk 0:02:33]}  Bg6 {[%clk 0:02:19]} 21. Nf4 {[%clk 0:02:33]}  Rxe5 {[%clk 0:02:09]} 22. Nxg6 {[%clk 0:02:33]}  Ra5 {[%clk 0:02:07]} 23. Nxf8 {[%clk 0:02:20]}  Rxf8 {[%clk 0:02:08]} 24. a4 {[%clk 0:02:20]}  Rc5 {[%clk 0:02:07]} 25. Rd2 {[%clk 0:02:20]}  Qc8 {[%clk 0:02:05]} 26. Rfd1 {[%clk 0:02:15]}  Qe6 {[%clk 0:02:03]} 27. Rd8 {[%clk 0:02:09]}  g6 {[%clk 0:01:57]} 28. c4 {[%clk 0:01:58]}  Re5 {[%clk 0:01:51]} 29. R8d6 {[%clk 0:01:52]}  Qe8 {[%clk 0:01:50]} 30. Rd8 {[%clk 0:01:34]}  Qe6 {[%clk 0:01:47]} 31. Qe3 {[%clk 0:01:34]}  Rxd8 {[%clk 0:01:39]} 32. Rxd8+ {[%clk 0:01:34]}  Kg7 {[%clk 0:01:39]} 33. Qxa7 {[%clk 0:01:35]}  e3 {[%clk 0:01:40]} 34. fxe3 {[%clk 0:01:35]}  Rxe3 {[%clk 0:01:40]} 35. Qd4+ {[%clk 0:01:18]}  Kh6 {[%clk 0:01:28]} 36. Qf4+ {[%clk 0:01:04]}  g5 {[%clk 0:01:19]} 37. Qd4 {[%clk 0:01:03]}  Re4 {[%clk 0:00:30]} 38. Qd6 {[%clk 0:01:02]}  Re1+ {[%clk 0:00:27]} 39. Kh2 {[%clk 0:01:02]}  Rb1 {[%clk 0:00:17]} 40. Qxe6+ {[%clk 0:00:41]}  fxe6 {[%clk 0:00:17]} 41. Rb8 {[%clk 0:00:42]}  Kg6 {[%clk 0:00:16]} 42. a5 {[%clk 0:00:42]}  Kf6 {[%clk 0:00:15]} 43. b4 {[%clk 0:00:42]}  Ke5 {[%clk 0:00:15]} 44. a6 {[%clk 0:00:42]}  Ra1 {[%clk 0:00:14]} 45. b5 {[%clk 0:00:42]}  cxb5 {[%clk 0:00:13]} 46. cxb5 {[%clk 0:00:43]}  Kd6 {[%clk 0:00:13]} 47. Rc8 {[%clk 0:00:39]}  Ra5 {[%clk 0:00:12]} 48. b6 {[%clk 0:00:39]}  Rxa6 {[%clk 0:00:12]} 49. b7 {[%clk 0:00:40]}  Rb6 {[%clk 0:00:12]} 50. b8=Q+ {[%clk 0:00:41]} 1-0


[Site "https://www.chess.com"]

[Event "Titled Tuesday Blitz March 08 Late 2022"]
[White "Zhurbinsky, David"]
[Black "Beerdsen, Thomas"]
[WhiteFideId "2072904"]
[BlackFideId "1030108"]
[WhiteElo "2553"]
[BlackElo "2585"]
[Result "0-1"]
[Round "03"]
[TimeControl "180+1"]
[Date "2022.03.08"]
[WhiteClock "0:00:04"]
[BlackClock "0:00:33"]

1. e4 {[%clk 0:02:55]}  e5 {[%clk 0:02:59]} 2. Nf3 {[%clk 0:02:55]}  Nc6 {[%clk 0:03:00]} 3. Bb5 {[%clk 0:02:56]}  f5 {[%clk 0:03:00]} 4. d3 {[%clk 0:02:54]}  fxe4 {[%clk 0:03:01]} 5. dxe4 {[%clk 0:02:55]}  Nf6 {[%clk 0:03:01]} 6. Nc3 {[%clk 0:02:54]}  Bb4 {[%clk 0:03:01]} 7. Bg5 {[%clk 0:02:49]}  Bxc3+ {[%clk 0:03:01]} 8. bxc3 {[%clk 0:02:49]}  O-O {[%clk 0:03:01]} 9. O-O {[%clk 0:02:46]}  d6 {[%clk 0:03:02]} 10. h3 {[%clk 0:02:45]}  Kh8 {[%clk 0:03:02]} 11. Nd2 {[%clk 0:02:40]}  Qe8 {[%clk 0:02:59]} 12. f4 {[%clk 0:02:34]}  exf4 {[%clk 0:02:53]} 13. Bxf4 {[%clk 0:01:39]}  Qg6 {[%clk 0:02:49]} 14. Kh2 {[%clk 0:01:24]}  Bd7 {[%clk 0:02:38]} 15. Bd3 {[%clk 0:01:21]}  Ne5 {[%clk 0:02:32]} 16. Bxe5 {[%clk 0:01:20]}  dxe5 {[%clk 0:02:33]} 17. Nf3 {[%clk 0:01:16]}  Nh5 {[%clk 0:02:32]} 18. Qe1 {[%clk 0:01:12]}  Rae8 {[%clk 0:02:18]} 19. Rb1 {[%clk 0:00:44]}  b6 {[%clk 0:02:04]} 20. Qh4 {[%clk 0:00:32]}  Nf4 {[%clk 0:01:53]} 21. Qg3 {[%clk 0:00:29]}  Qh6 {[%clk 0:01:50]} 22. Ng5 {[%clk 0:00:25]}  Rf6 {[%clk 0:01:46]} 23. Bc4 {[%clk 0:00:22]}  Ref8 {[%clk 0:01:45]} 24. Rbd1 {[%clk 0:00:22]}  Rg6 {[%clk 0:01:33]} 25. Rxd7 {[%clk 0:00:07]}  Rxg5 {[%clk 0:01:34]} 26. Qf3 {[%clk 0:00:06]}  Qh4 {[%clk 0:01:20]} 27. Rf2 {[%clk 0:00:06]}  h6 {[%clk 0:01:15]} 28. Rf7 {[%clk 0:00:06]}  Rxf7 {[%clk 0:00:59]} 29. Bxf7 {[%clk 0:00:07]}  Kh7 {[%clk 0:01:00]} 30. Bb3 {[%clk 0:00:06]}  Rg6 {[%clk 0:00:57]} 31. Ba4 {[%clk 0:00:05]}  Rf6 {[%clk 0:00:57]} 32. Bd7 {[%clk 0:00:04]}  g6 {[%clk 0:00:49]} 33. g3 {[%clk 0:00:04]}  Qg5 {[%clk 0:00:48]} 34. gxf4 {[%clk 0:00:04]}  Rxf4 {[%clk 0:00:48]} 35. Qg3 {[%clk 0:00:04]}  Qf6 {[%clk 0:00:45]} 36. Rxf4 {[%clk 0:00:04]}  exf4 {[%clk 0:00:46]} 37. Qf2 {[%clk 0:00:03]}  c5 {[%clk 0:00:45]} 38. Bc6 {[%clk 0:00:04]}  Qxc6 {[%clk 0:00:44]} 39. Qxf4 {[%clk 0:00:04]}  Qd7 {[%clk 0:00:44]} 40. e5 {[%clk 0:00:05]}  Qe6 {[%clk 0:00:43]} 41. Qf8 {[%clk 0:00:04]}  Qxe5+ {[%clk 0:00:42]} 42. Kg2 {[%clk 0:00:05]}  Qg7 {[%clk 0:00:43]} 43. Qf3 {[%clk 0:00:04]}  Qg8 {[%clk 0:00:41]} 44. Qb7+ {[%clk 0:00:04]}  Qg7 {[%clk 0:00:41]} 45. Qf3 {[%clk 0:00:05]}  Qd7 {[%clk 0:00:40]} 46. h4 {[%clk 0:00:06]}  g5 {[%clk 0:00:38]} 47. h5 {[%clk 0:00:06]}  Kg7 {[%clk 0:00:36]} 48. Qe4 {[%clk 0:00:06]}  Qd6 {[%clk 0:00:35]} 49. Qb7+ {[%clk 0:00:06]}  Kf6 {[%clk 0:00:34]} 50. Qf3+ {[%clk 0:00:06]}  Qf4 {[%clk 0:00:34]} 51. Qc6+ {[%clk 0:00:07]}  Kf5 {[%clk 0:00:33]} 52. Qg6+ {[%clk 0:00:07]}  Ke5 {[%clk 0:00:33]} 53. Qg7+ {[%clk 0:00:06]}  Ke4 {[%clk 0:00:33]} 54. Qb7+ {[%clk 0:00:04]}  Ke3 {[%clk 0:00:33]} 0-1


[Site "https://www.chess.com"]

[Event "Titled Tuesday Blitz March 08 Late 2022"]
[White "Al-Tarboush, Ward"]
[Black "Maghsoodloo, Parham"]
[WhiteFideId "7601450"]
[BlackFideId "12539929"]
[WhiteElo "2276"]
[BlackElo "2630"]
[Result "0-1"]
[Round "04"]
[TimeControl "180+1"]
[Date "2022.03.08"]
[WhiteClock "0:00:57"]
[BlackClock "0:01:40"]

1. e4 {[%clk 0:02:48]}  c5 {[%clk 0:02:59]} 2. Nf3 {[%clk 0:02:48]}  e6 {[%clk 0:02:58]} 3. d4 {[%clk 0:02:48]}  cxd4 {[%clk 0:02:58]} 4. Nxd4 {[%clk 0:02:49]}  a6 {[%clk 0:02:58]} 5. Bd3 {[%clk 0:02:48]}  Qc7 {[%clk 0:02:58]} 6. O-O {[%clk 0:02:48]}  Bc5 {[%clk 0:02:58]} 7. c3 {[%clk 0:02:47]}  Nf6 {[%clk 0:02:57]} 8. b4 {[%clk 0:02:46]}  Ba7 {[%clk 0:02:56]} 9. Bg5 {[%clk 0:02:44]}  h5 {[%clk 0:02:50]} 10. a4 {[%clk 0:02:24]}  Nc6 {[%clk 0:02:43]} 11. Nxc6 {[%clk 0:02:22]}  dxc6 {[%clk 0:02:39]} 12. Nd2 {[%clk 0:02:15]}  Ng4 {[%clk 0:02:33]} 13. Nf3 {[%clk 0:02:10]}  f6 {[%clk 0:02:16]} 14. Bh4 {[%clk 0:02:10]}  e5 {[%clk 0:02:12]} 15. h3 {[%clk 0:02:05]}  Nh6 {[%clk 0:02:12]} 16. Bc4 {[%clk 0:01:51]}  Nf7 {[%clk 0:02:08]} 17. Bg3 {[%clk 0:01:49]}  g5 {[%clk 0:02:07]} 18. Qb3 {[%clk 0:01:47]}  h4 {[%clk 0:02:03]} 19. Bh2 {[%clk 0:01:47]}  g4 {[%clk 0:02:03]} 20. hxg4 {[%clk 0:01:37]}  Bxg4 {[%clk 0:02:03]} 21. Rad1 {[%clk 0:01:31]}  h3 {[%clk 0:02:02]} 22. Bxf7+ {[%clk 0:01:18]}  Qxf7 {[%clk 0:02:01]} 23. Qxf7+ {[%clk 0:01:18]}  Kxf7 {[%clk 0:02:02]} 24. Rd3 {[%clk 0:01:06]}  Rag8 {[%clk 0:01:57]} 25. Bg3 {[%clk 0:01:05]}  Be6 {[%clk 0:01:50]} 26. Nd2 {[%clk 0:00:59]}  hxg2 {[%clk 0:01:43]} 27. Rd1 {[%clk 0:00:57]}  Rh1+ {[%clk 0:01:41]} 28. Kxg2 {[%clk 0:00:57]}  Rxd1 {[%clk 0:01:40]} 0-1


[Site "https://www.chess.com"]